[Event "Titled Tuesday Blitz August 22 Late 2023"]
[White "Pein, Jonathan"]
[Black "Altman, Joshua"]
[WhiteFideId "417092"]
[BlackFideId "426210"]
[WhiteElo "2427"]
[BlackElo "2607"]
[Result "1-0"]
[Round "3"]
[TimeControl "180+1"]
[Date "2023.08.22"]
[WhiteClock "0:00:20"]
[BlackClock "0:00:08"]
[Board "108"]

1. b3 {[%clk 0:02:59]}  d5 {[%clk 0:02:59]} 2. Bb2 {[%clk 0:03:00]}  Bg4 {[%clk 0:02:59]} 3. f3 {[%clk 0:03:00]}  Bh5 {[%clk 0:02:58]} 4. e4 {[%clk 0:03:00]}  dxe4 {[%clk 0:02:56]} 5. Qe2 {[%clk 0:03:01]}  c6 {[%clk 0:02:43]} 6. Nc3 {[%clk 0:03:01]}  exf3 {[%clk 0:02:40]} 7. Nxf3 {[%clk 0:03:02]}  Nf6 {[%clk 0:02:38]} 8. O-O-O {[%clk 0:03:02]}  e6 {[%clk 0:02:37]} 9. h3 {[%clk 0:03:02]}  Nbd7 {[%clk 0:02:37]} 10. g4 {[%clk 0:03:03]}  Bg6 {[%clk 0:02:37]} 11. Bg2 {[%clk 0:03:04]}  Qc7 {[%clk 0:02:35]} 12. Nh4 {[%clk 0:03:01]}  O-O-O {[%clk 0:02:30]} 13. Kb1 {[%clk 0:02:55]}  Bd6 {[%clk 0:02:29]} 14. Nxg6 {[%clk 0:02:52]}  hxg6 {[%clk 0:02:29]} 15. Rhf1 {[%clk 0:02:49]}  Rhf8 {[%clk 0:02:20]} 16. Ne4 {[%clk 0:02:42]}  Nxe4 {[%clk 0:02:12]} 17. Qxe4 {[%clk 0:02:43]}  Kb8 {[%clk 0:02:10]} 18. Bxg7 {[%clk 0:02:42]}  Nc5 {[%clk 0:02:02]} 19. Qf3 {[%clk 0:02:30]}  Rg8 {[%clk 0:02:02]} 20. Qxf7 {[%clk 0:02:24]}  Rxg7 {[%clk 0:02:01]} 21. Qf6 {[%clk 0:02:12]}  Be5 {[%clk 0:01:56]} 22. Qf2 {[%clk 0:02:11]}  Bd4 {[%clk 0:01:48]} 23. Qe2 {[%clk 0:02:11]}  Rgd7 {[%clk 0:01:39]} 24. c3 {[%clk 0:02:10]}  Bg7 {[%clk 0:01:37]} 25. d4 {[%clk 0:02:11]}  Qa5 {[%clk 0:01:07]} 26. Rc1 {[%clk 0:01:54]}  Na6 {[%clk 0:00:54]} 27. Qxe6 {[%clk 0:01:54]}  Nc7 {[%clk 0:00:49]} 28. Qxg6 {[%clk 0:01:53]}  Nb5 {[%clk 0:00:45]} 29. Qd3 {[%clk 0:01:39]}  Na3+ {[%clk 0:00:42]} 30. Kb2 {[%clk 0:01:29]}  Rxd4 {[%clk 0:00:35]} 31. Rf5 {[%clk 0:01:09]}  Rxd3 {[%clk 0:00:23]} 32. Rxa5 {[%clk 0:01:08]}  Nb5 {[%clk 0:00:24]} 33. Bf1 {[%clk 0:00:53]}  Rxc3 {[%clk 0:00:21]} 34. Bxb5 {[%clk 0:00:41]}  Re3+ {[%clk 0:00:07]} 35. Ka3 {[%clk 0:00:38]}  cxb5 {[%clk 0:00:06]} 36. Rxb5 {[%clk 0:00:37]}  Rd2 {[%clk 0:00:06]} 37. Rc4 {[%clk 0:00:33]}  Bf8+ {[%clk 0:00:05]} 38. Rcb4 {[%clk 0:00:24]}  Rd4 {[%clk 0:00:05]} 39. Rxb7+ {[%clk 0:00:23]}  Kc8 {[%clk 0:00:04]} 40. Rb8+ {[%clk 0:00:23]}  Kc7 {[%clk 0:00:03]} 41. Rxf8 {[%clk 0:00:23]}  Rxb4 {[%clk 0:00:03]} 42. Kxb4 {[%clk 0:00:24]}  Rxh3 {[%clk 0:00:03]} 43. Rf7+ {[%clk 0:00:24]}  Kd6 {[%clk 0:00:03]} 44. Rxa7 {[%clk 0:00:24]}  Rg3 {[%clk 0:00:03]} 45. Rg7 {[%clk 0:00:24]}  Ke5 {[%clk 0:00:03]} 46. a4 {[%clk 0:00:24]}  Kf4 {[%clk 0:00:04]} 47. a5 {[%clk 0:00:23]}  Kf3 {[%clk 0:00:04]} 48. a6 {[%clk 0:00:24]}  Kg2 {[%clk 0:00:05]} 49. a7 {[%clk 0:00:23]}  Kh2 {[%clk 0:00:05]} 50. Rh7+ {[%clk 0:00:19]}  Kg1 {[%clk 0:00:05]} 51. a8=Q {[%clk 0:00:19]}  Rg2 {[%clk 0:00:05]} 52. Qxg2+ {[%clk 0:00:18]}  Kxg2 {[%clk 0:00:05]} 53. g5 {[%clk 0:00:19]}  Kg1 {[%clk 0:00:05]} 54. Rc7 {[%clk 0:00:19]}  Kf1 {[%clk 0:00:06]} 55. Rc2 {[%clk 0:00:19]}  Ke1 {[%clk 0:00:07]} 56. Kc3 {[%clk 0:00:20]}  Kd1 {[%clk 0:00:07]} 57. b4 {[%clk 0:00:21]}  Ke1 {[%clk 0:00:07]} 58. b5 {[%clk 0:00:20]}  Kd1 {[%clk 0:00:08]} 1-0


[Site "https://www.chess.com"]

[Event "Titled Tuesday Blitz August 22 Late 2023"]
[White "Silva Lucena, Cristian"]
[Black "Ribeiro, Matheus Mendes Domingues"]
[WhiteFideId "2232588"]
[BlackFideId "324226923"]
[WhiteElo "2424"]
[BlackElo "2591"]
[Result "0-1"]
[Round "3"]
[TimeControl "180+1"]
[Date "2023.08.22"]
[WhiteClock "0:00:39"]
[BlackClock "0:00:23"]
[Board "110"]

1. e4 {[%clk 0:03:00]}  e6 {[%clk 0:03:00]} 2. d4 {[%clk 0:02:59]}  d5 {[%clk 0:03:00]} 3. e5 {[%clk 0:03:00]}  c5 {[%clk 0:03:00]} 4. c3 {[%clk 0:03:01]}  Nc6 {[%clk 0:03:01]} 5. Nf3 {[%clk 0:03:01]}  Nge7 {[%clk 0:03:02]} 6. a3 {[%clk 0:03:01]}  Nf5 {[%clk 0:03:00]} 7. b4 {[%clk 0:02:59]}  cxd4 {[%clk 0:02:59]} 8. cxd4 {[%clk 0:02:59]}  Bd7 {[%clk 0:02:59]} 9. Bb2 {[%clk 0:02:57]}  b5 {[%clk 0:02:49]} 10. Bxb5 {[%clk 0:02:44]}  Nxe5 {[%clk 0:02:49]} 11. Bxd7+ {[%clk 0:02:40]}  Nxd7 {[%clk 0:02:49]} 12. O-O {[%clk 0:02:39]}  Bd6 {[%clk 0:02:48]} 13. Nc3 {[%clk 0:02:33]}  O-O {[%clk 0:02:47]} 14. Na4 {[%clk 0:02:33]}  Nb6 {[%clk 0:02:45]} 15. Nc5 {[%clk 0:02:32]}  Nc4 {[%clk 0:02:45]} 16. Bc1 {[%clk 0:02:29]}  Qc7 {[%clk 0:02:29]} 17. h3 {[%clk 0:02:03]}  a5 {[%clk 0:02:28]} 18. Bd2 {[%clk 0:01:52]}  axb4 {[%clk 0:02:19]} 19. Bxb4 {[%clk 0:01:53]}  Rfb8 {[%clk 0:02:01]} 20. Qd3 {[%clk 0:01:45]}  h6 {[%clk 0:01:47]} 21. g4 {[%clk 0:01:41]}  Ne7 {[%clk 0:01:45]} 22. g5 {[%clk 0:01:37]}  Ng6 {[%clk 0:01:44]} 23. gxh6 {[%clk 0:01:30]}  Nf4 {[%clk 0:01:37]} 24. Qc2 {[%clk 0:01:22]}  Nxh3+ {[%clk 0:01:32]} 25. Kh1 {[%clk 0:01:21]}  Bxc5 {[%clk 0:01:24]} 26. dxc5 {[%clk 0:01:11]}  Qf4 {[%clk 0:01:24]} 27. Nh2 {[%clk 0:01:01]}  Qxh6 {[%clk 0:01:12]} 28. Qd3 {[%clk 0:00:59]}  Rxb4 {[%clk 0:01:02]} 29. c6 {[%clk 0:00:52]}  Rb6 {[%clk 0:00:51]} 30. c7 {[%clk 0:00:50]}  Rc6 {[%clk 0:00:49]} 31. Qg3 {[%clk 0:00:51]}  Nf4 {[%clk 0:00:45]} 32. Rg1 {[%clk 0:00:49]}  Rxc7 {[%clk 0:00:37]} 33. a4 {[%clk 0:00:46]}  Rac8 {[%clk 0:00:37]} 34. a5 {[%clk 0:00:47]}  Ne2 {[%clk 0:00:37]} 35. Qg5 {[%clk 0:00:44]}  Qxg5 {[%clk 0:00:33]} 36. Rxg5 {[%clk 0:00:43]}  Ra7 {[%clk 0:00:33]} 37. a6 {[%clk 0:00:44]}  Rca8 {[%clk 0:00:33]} 38. Ng4 {[%clk 0:00:44]}  Kf8 {[%clk 0:00:31]} 39. Ra2 {[%clk 0:00:42]}  Nf4 {[%clk 0:00:28]} 40. Ne3 {[%clk 0:00:36]}  Rxa6 {[%clk 0:00:26]} 41. Rc2 {[%clk 0:00:37]}  Nxe3 {[%clk 0:00:25]} 42. fxe3 {[%clk 0:00:37]}  Ng6 {[%clk 0:00:25]} 43. Rh5 {[%clk 0:00:37]}  Ra1+ {[%clk 0:00:25]} 44. Kg2 {[%clk 0:00:37]}  R8a2 {[%clk 0:00:25]} 45. Rxa2 {[%clk 0:00:38]}  Rxa2+ {[%clk 0:00:26]} 46. Kf3 {[%clk 0:00:39]}  f6 {[%clk 0:00:25]} 47. Rh1 {[%clk 0:00:39]}  Kf7 {[%clk 0:00:25]} 48. Rb1 {[%clk 0:00:40]}  Ne5+ {[%clk 0:00:25]} 49. Kg3 {[%clk 0:00:39]}  Ra3 {[%clk 0:00:23]} 50. Rb7+ {[%clk 0:00:40]}  Kg6 {[%clk 0:00:23]} 51. Kf4 {[%clk 0:00:41]}  Nc4 {[%clk 0:00:22]} 52. e4 {[%clk 0:00:40]}  dxe4 {[%clk 0:00:23]} 53. Kxe4 {[%clk 0:00:41]}  Nd6+ {[%clk 0:00:23]} 54. Kd4 {[%clk 0:00:39]}  Nxb7 {[%clk 0:00:23]} 0-1


[Site "https://www.chess.com"]

[Event "Titled Tuesday Blitz August 22 Late 2023"]
[White "Ozates, Tuna"]
[Black "Kupervaser, Erez"]
[WhiteFideId "6354521"]
[BlackFideId "2814587"]
[WhiteElo "2590"]
[BlackElo "2424"]
[Result "0-1"]
[Round "3"]
[TimeControl "180+1"]
[Date "2023.08.22"]
[WhiteClock "0:00:59"]
[BlackClock "0:01:30"]
[Board "111"]

1. e4 {[%clk 0:03:00]}  c5 {[%clk 0:02:59]} 2. Nf3 {[%clk 0:03:00]}  d6 {[%clk 0:02:59]} 3. c3 {[%clk 0:03:00]}  Nf6 {[%clk 0:02:56]} 4. Bd3 {[%clk 0:02:59]}  g6 {[%clk 0:02:55]} 5. Bc2 {[%clk 0:02:59]}  Bg7 {[%clk 0:02:55]} 6. O-O {[%clk 0:03:00]}  O-O {[%clk 0:02:56]} 7. d4 {[%clk 0:03:00]}  cxd4 {[%clk 0:02:54]} 8. cxd4 {[%clk 0:02:59]}  Bg4 {[%clk 0:02:54]} 9. h3 {[%clk 0:02:59]}  Bxf3 {[%clk 0:02:54]} 10. Qxf3 {[%clk 0:03:00]}  Nc6 {[%clk 0:02:54]} 11. Rd1 {[%clk 0:02:57]}  Nd7 {[%clk 0:02:52]} 12. Be3 {[%clk 0:02:54]}  Qb6 {[%clk 0:01:59]} 13. Nc3 {[%clk 0:02:29]}  Qxb2 {[%clk 0:01:54]} 14. Rab1 {[%clk 0:01:47]}  Qxc3 {[%clk 0:01:50]} 15. Rxb7 {[%clk 0:01:45]}  Qxc2 {[%clk 0:01:44]} 16. Rxd7 {[%clk 0:01:44]}  Rab8 {[%clk 0:01:44]} 17. Kh2 {[%clk 0:01:41]}  Qa4 {[%clk 0:01:36]} 18. Rc7 {[%clk 0:01:28]}  Nxd4 {[%clk 0:01:35]} 19. Bxd4 {[%clk 0:01:17]}  Bxd4 {[%clk 0:01:36]} 20. Rxe7 {[%clk 0:01:17]}  Rb2 {[%clk 0:01:32]} 21. Rf1 {[%clk 0:01:07]}  Qxa2 {[%clk 0:01:30]} 22. Kg3 {[%clk 0:00:59]}  Rb3 {[%clk 0:01:30]} 0-1


[Site "https://www.chess.com"]

[Event "Titled Tuesday Blitz August 22 Late 2023"]
[White "Balla, Tamas-Kristof"]
[Black "Postlmayer, Jakob"]
[WhiteFideId "1208497"]
[BlackFideId "1643622"]
[WhiteElo "2417"]
[BlackElo "2588"]
[Result "0-1"]
[Round "3"]
[TimeControl "180+1"]
[Date "2023.08.22"]
[WhiteClock "0:00:00"]
[BlackClock "0:01:10"]
[Board "112"]

1. e4 {[%clk 0:03:00]}  c5 {[%clk 0:02:59]} 2. c3 {[%clk 0:02:56]}  Nf6 {[%clk 0:02:57]} 3. e5 {[%clk 0:02:55]}  Nd5 {[%clk 0:02:58]} 4. d4 {[%clk 0:02:56]}  cxd4 {[%clk 0:02:58]} 5. Nf3 {[%clk 0:02:56]}  e6 {[%clk 0:02:56]} 6. cxd4 {[%clk 0:02:56]}  d6 {[%clk 0:02:56]} 7. a3 {[%clk 0:02:56]}  Bd7 {[%clk 0:02:51]} 8. Bd3 {[%clk 0:02:55]}  Bc6 {[%clk 0:02:51]} 9. O-O {[%clk 0:02:51]}  Nd7 {[%clk 0:02:51]} 10. Qe2 {[%clk 0:02:51]}  Be7 {[%clk 0:02:50]} 11. Re1 {[%clk 0:02:44]}  O-O {[%clk 0:02:44]} 12. Bd2 {[%clk 0:02:41]}  dxe5 {[%clk 0:02:43]} 13. dxe5 {[%clk 0:02:41]}  Qb6 {[%clk 0:02:31]} 14. Nc3 {[%clk 0:02:28]}  Qxb2 {[%clk 0:02:25]} 15. Nxd5 {[%clk 0:02:20]}  Bxd5 {[%clk 0:02:24]} 16. Reb1 {[%clk 0:02:20]}  Bxf3 {[%clk 0:02:21]} 17. Bxh7+ {[%clk 0:02:01]}  Kh8 {[%clk 0:02:15]} 18. gxf3 {[%clk 0:01:10]}  Qxe5 {[%clk 0:02:13]} 19. Be4 {[%clk 0:01:10]}  Nc5 {[%clk 0:01:57]} 20. Be3 {[%clk 0:00:54]}  Nxe4 {[%clk 0:01:53]} 21. fxe4 {[%clk 0:00:55]}  Qxe4 {[%clk 0:01:43]} 22. Rb5 {[%clk 0:00:49]}  Kg8 {[%clk 0:01:35]} 23. Rd1 {[%clk 0:00:38]}  Rfd8 {[%clk 0:01:33]} 24. Rc1 {[%clk 0:00:20]}  Rac8 {[%clk 0:01:29]} 25. Rxc8 {[%clk 0:00:17]}  Rxc8 {[%clk 0:01:30]} 26. Qb2 {[%clk 0:00:13]}  Qg4+ {[%clk 0:01:20]} 27. Kh1 {[%clk 0:00:12]}  Qf3+ {[%clk 0:01:13]} 28. Kg1 {[%clk 0:00:00]}  Rd8 {[%clk 0:01:10]} 0-1


[Site "https://www.chess.com"]

[Event "Titled Tuesday Blitz August 22 Late 2023"]
[White "Grebeniuk, Semen"]
[Black "ExchangeAB"]
[WhiteFideId "14117509"]
[WhiteElo "2587"]
[BlackElo "2416"]
[Result "0-1"]
[Round "3"]
[TimeControl "180+1"]
[Date "2023.08.22"]
[WhiteClock "0:00:00"]
[BlackClock "0:00:58"]
[Board "113"]

1. d4 {[%clk 0:03:00]}  Nf6 {[%clk 0:03:00]} 2. Nf3 {[%clk 0:03:01]}  c6 {[%clk 0:03:00]} 3. c4 {[%clk 0:03:00]}  d5 {[%clk 0:03:00]} 4. cxd5 {[%clk 0:03:01]}  cxd5 {[%clk 0:03:01]} 5. Nc3 {[%clk 0:03:02]}  Nc6 {[%clk 0:03:02]} 6. Bf4 {[%clk 0:03:02]}  Bf5 {[%clk 0:03:02]} 7. e3 {[%clk 0:03:02]}  e6 {[%clk 0:03:03]} 8. Bb5 {[%clk 0:02:56]}  Nd7 {[%clk 0:03:03]} 9. O-O {[%clk 0:02:55]}  Rc8 {[%clk 0:03:02]} 10. Rc1 {[%clk 0:02:54]}  a6 {[%clk 0:03:02]} 11. Bd3 {[%clk 0:02:40]}  Bxd3 {[%clk 0:03:02]} 12. Qxd3 {[%clk 0:02:41]}  Nb6 {[%clk 0:02:59]} 13. e4 {[%clk 0:02:30]}  dxe4 {[%clk 0:02:55]} 14. Qxe4 {[%clk 0:02:22]}  Be7 {[%clk 0:02:38]} 15. Rcd1 {[%clk 0:02:14]}  O-O {[%clk 0:02:37]} 16. d5 {[%clk 0:02:13]}  exd5 {[%clk 0:02:19]} 17. Nxd5 {[%clk 0:02:14]}  Bf6 {[%clk 0:02:12]} 18. Qf5 {[%clk 0:01:36]}  Nxd5 {[%clk 0:02:08]} 19. Rxd5 {[%clk 0:01:36]}  Qb6 {[%clk 0:02:06]} 20. b3 {[%clk 0:01:31]}  Ne7 {[%clk 0:02:05]} 21. Qh5 {[%clk 0:01:12]}  Nxd5 {[%clk 0:02:04]} 22. Qxd5 {[%clk 0:01:13]}  Rfd8 {[%clk 0:02:03]} 23. Qf5 {[%clk 0:01:13]}  Qe6 {[%clk 0:02:00]} 24. Qa5 {[%clk 0:01:11]}  Rd5 {[%clk 0:01:58]} 25. Qa4 {[%clk 0:01:07]}  Qc6 {[%clk 0:01:54]} 26. Qe4 {[%clk 0:01:02]}  h6 {[%clk 0:01:53]} 27. h3 {[%clk 0:00:58]}  Rd1 {[%clk 0:01:40]} 28. Qxc6 {[%clk 0:00:40]}  Rxf1+ {[%clk 0:01:40]} 29. Kxf1 {[%clk 0:00:41]}  Rxc6 {[%clk 0:01:40]} 30. Ne1 {[%clk 0:00:37]}  g5 {[%clk 0:01:36]} 31. Be3 {[%clk 0:00:37]}  Be5 {[%clk 0:01:35]} 32. Ke2 {[%clk 0:00:38]}  f5 {[%clk 0:01:35]} 33. g3 {[%clk 0:00:36]}  Kf7 {[%clk 0:01:35]} 34. Kd2 {[%clk 0:00:35]}  Bc3+ {[%clk 0:01:33]} 35. Ke2 {[%clk 0:00:35]}  Bxe1 {[%clk 0:01:34]} 36. Kxe1 {[%clk 0:00:36]}  Kg6 {[%clk 0:01:32]} 37. Kd2 {[%clk 0:00:36]}  g4 {[%clk 0:01:32]} 38. hxg4 {[%clk 0:00:36]}  fxg4 {[%clk 0:01:33]} 39. Kd3 {[%clk 0:00:36]}  h5 {[%clk 0:01:32]} 40. a4 {[%clk 0:00:36]}  Kf5 {[%clk 0:01:31]} 41. b4 {[%clk 0:00:32]}  b5 {[%clk 0:01:30]} 42. axb5 {[%clk 0:00:31]}  axb5 {[%clk 0:01:31]} 43. Ba7 {[%clk 0:00:29]}  Rc4 {[%clk 0:01:31]} 44. Bc5 {[%clk 0:00:28]}  Ke5 {[%clk 0:01:31]} 45. Bf8 {[%clk 0:00:27]}  Kd5 {[%clk 0:01:31]} 46. Be7 {[%clk 0:00:26]}  Rc1 {[%clk 0:01:30]} 47. Kd2 {[%clk 0:00:25]}  Ra1 {[%clk 0:01:29]} 48. Ke3 {[%clk 0:00:24]}  Ra3+ {[%clk 0:01:27]} 49. Kf4 {[%clk 0:00:22]}  Ke6 {[%clk 0:01:11]} 50. Bc5 {[%clk 0:00:21]}  Rc3 {[%clk 0:01:05]} 51. Ke4 {[%clk 0:00:12]}  Rc4+ {[%clk 0:01:03]} 52. Kd3 {[%clk 0:00:09]}  Rxc5 {[%clk 0:00:54]} 53. bxc5 {[%clk 0:00:10]}  Kd5 {[%clk 0:00:54]} 54. Kc2 {[%clk 0:00:01]}  Kxc5 {[%clk 0:00:54]} 55. Kc3 {[%clk 0:00:02]}  b4+ {[%clk 0:00:54]} 56. Kb3 {[%clk 0:00:03]}  Kb5 {[%clk 0:00:55]} 57. Kb2 {[%clk 0:00:03]}  Kc4 {[%clk 0:00:55]} 58. Kc2 {[%clk 0:00:04]}  b3+ {[%clk 0:00:56]} 59. Kb2 {[%clk 0:00:04]}  Kb4 {[%clk 0:00:56]} 60. Kb1 {[%clk 0:00:04]}  Kc3 {[%clk 0:00:56]} 61. Kc1 {[%clk 0:00:05]}  b2+ {[%clk 0:00:56]} 62. Kb1 {[%clk 0:00:05]}  Kb3 {[%clk 0:00:56]} 63. f3 {[%clk 0:00:03]}  gxf3 {[%clk 0:00:57]} 64. g4 {[%clk 0:00:00]}  f2 {[%clk 0:00:58]} 0-1


[Site "https://www.chess.com"]

[Event "Titled Tuesday Blitz August 22 Late 2023"]
[White "Principe, Gerson"]
[Black "Arnold, Ken"]
[WhiteFideId "3804550"]
[BlackFideId "2056836"]
[WhiteElo "2578"]
[BlackElo "2403"]
[Result "1/2-1/2"]
[Round "3"]
[TimeControl "180+1"]
[Date "2023.08.22"]
[WhiteClock "0:00:20"]
[BlackClock "0:00:23"]
[Board "117"]

1. Nf3 {[%clk 0:02:59]}  d5 {[%clk 0:02:59]} 2. e3 {[%clk 0:02:58]}  Nf6 {[%clk 0:02:59]} 3. b4 {[%clk 0:02:58]}  Bg4 {[%clk 0:02:57]} 4. Bb2 {[%clk 0:02:58]}  Nbd7 {[%clk 0:02:57]} 5. d4 {[%clk 0:02:57]}  e6 {[%clk 0:02:55]} 6. a3 {[%clk 0:02:57]}  a5 {[%clk 0:02:55]} 7. b5 {[%clk 0:02:56]}  Nb6 {[%clk 0:02:51]} 8. Nbd2 {[%clk 0:02:56]}  Bd6 {[%clk 0:02:50]} 9. a4 {[%clk 0:02:54]}  Qe7 {[%clk 0:02:49]} 10. Be2 {[%clk 0:02:54]}  Nfd7 {[%clk 0:02:48]} 11. O-O {[%clk 0:02:53]}  O-O {[%clk 0:02:47]} 12. e4 {[%clk 0:02:33]}  Bxf3 {[%clk 0:02:17]} 13. Bxf3 {[%clk 0:02:29]}  Qh4 {[%clk 0:02:05]} 14. e5 {[%clk 0:02:09]}  Bb4 {[%clk 0:02:00]} 15. c3 {[%clk 0:02:08]}  Be7 {[%clk 0:01:56]} 16. c4 {[%clk 0:01:59]}  Bb4 {[%clk 0:01:43]} 17. cxd5 {[%clk 0:01:52]}  Nxd5 {[%clk 0:01:42]} 18. Bxd5 {[%clk 0:01:23]}  exd5 {[%clk 0:01:42]} 19. Nf3 {[%clk 0:01:23]}  Qe7 {[%clk 0:01:36]} 20. Rc1 {[%clk 0:01:23]}  Nb6 {[%clk 0:01:34]} 21. Qb3 {[%clk 0:01:19]}  Rfd8 {[%clk 0:01:30]} 22. Bc3 {[%clk 0:01:10]}  Bxc3 {[%clk 0:01:26]} 23. Rxc3 {[%clk 0:01:08]}  Nc4 {[%clk 0:01:24]} 24. Qc2 {[%clk 0:00:47]}  c6 {[%clk 0:01:21]} 25. bxc6 {[%clk 0:00:46]}  bxc6 {[%clk 0:01:20]} 26. Nd2 {[%clk 0:00:46]}  Nxd2 {[%clk 0:01:14]} 27. Qxd2 {[%clk 0:00:47]}  Qb4 {[%clk 0:01:14]} 28. Rfc1 {[%clk 0:00:46]}  h6 {[%clk 0:01:12]} 29. h4 {[%clk 0:00:40]}  Rac8 {[%clk 0:01:01]} 30. Qf4 {[%clk 0:00:25]}  Qxa4 {[%clk 0:00:52]} 31. Rg3 {[%clk 0:00:22]}  Kh8 {[%clk 0:00:44]} 32. Qxf7 {[%clk 0:00:20]}  Rg8 {[%clk 0:00:41]} 33. Qf4 {[%clk 0:00:14]}  c5 {[%clk 0:00:39]} 34. e6 {[%clk 0:00:12]}  Qxd4 {[%clk 0:00:39]} 35. Qxd4 {[%clk 0:00:12]}  cxd4 {[%clk 0:00:39]} 36. Rd1 {[%clk 0:00:12]}  Rc4 {[%clk 0:00:38]} 37. Ra3 {[%clk 0:00:12]}  a4 {[%clk 0:00:38]} 38. Re1 {[%clk 0:00:12]}  Re8 {[%clk 0:00:38]} 39. e7 {[%clk 0:00:13]}  Kg8 {[%clk 0:00:37]} 40. g3 {[%clk 0:00:11]}  Kf7 {[%clk 0:00:36]} 41. Rf3+ {[%clk 0:00:11]}  Kg8 {[%clk 0:00:36]} 42. Kg2 {[%clk 0:00:11]}  Rc7 {[%clk 0:00:36]} 43. Rd3 {[%clk 0:00:10]}  Rcxe7 {[%clk 0:00:35]} 44. Ra1 {[%clk 0:00:10]}  Ra7 {[%clk 0:00:33]} 45. Rxd4 {[%clk 0:00:11]}  a3 {[%clk 0:00:28]} 46. Rxd5 {[%clk 0:00:11]}  a2 {[%clk 0:00:28]} 47. Rd2 {[%clk 0:00:12]}  Rea8 {[%clk 0:00:27]} 48. Re2 {[%clk 0:00:11]}  Ra3 {[%clk 0:00:27]} 49. Kg1 {[%clk 0:00:11]}  R8a7 {[%clk 0:00:27]} 50. h5 {[%clk 0:00:11]}  R3a5 {[%clk 0:00:26]} 51. Kg2 {[%clk 0:00:12]}  Rxh5 {[%clk 0:00:25]} 52. Rexa2 {[%clk 0:00:12]}  Rxa2 {[%clk 0:00:26]} 53. Rxa2 {[%clk 0:00:13]}  Rf5 {[%clk 0:00:26]} 54. Ra4 {[%clk 0:00:14]}  Kh7 {[%clk 0:00:26]} 55. f4 {[%clk 0:00:14]}  h5 {[%clk 0:00:26]} 56. Ra7 {[%clk 0:00:14]}  Rb5 {[%clk 0:00:26]} 57. Kf3 {[%clk 0:00:15]}  Rb3+ {[%clk 0:00:26]} 58. Kf2 {[%clk 0:00:15]}  Rb2+ {[%clk 0:00:26]} 59. Kf3 {[%clk 0:00:15]}  Rb3+ {[%clk 0:00:26]} 60. Kg2 {[%clk 0:00:16]}  Rb1 {[%clk 0:00:26]} 61. Ra6 {[%clk 0:00:16]}  g6 {[%clk 0:00:24]} 62. Ra7+ {[%clk 0:00:16]}  Kh6 {[%clk 0:00:24]} 63. Ra6 {[%clk 0:00:17]}  Kg7 {[%clk 0:00:24]} 64. Ra7+ {[%clk 0:00:17]}  Kf6 {[%clk 0:00:25]} 65. Ra5 {[%clk 0:00:18]}  Rb2+ {[%clk 0:00:24]} 66. Kf3 {[%clk 0:00:17]}  Rb3+ {[%clk 0:00:24]} 67. Kf2 {[%clk 0:00:18]}  Rb2+ {[%clk 0:00:24]} 68. Kf3 {[%clk 0:00:18]}  Rb3+ {[%clk 0:00:25]} 69. Kg2 {[%clk 0:00:19]}  Rb2+ {[%clk 0:00:25]} 70. Kh3 {[%clk 0:00:19]}  Rb1 {[%clk 0:00:25]} 71. Ra6+ {[%clk 0:00:20]}  Kf5 {[%clk 0:00:25]} 72. Ra5+ {[%clk 0:00:21]}  Kf6 {[%clk 0:00:25]} 73. Ra7 {[%clk 0:00:20]}  Rh1+ {[%clk 0:00:23]} 74. Kg2 {[%clk 0:00:21]}  Rb1 {[%clk 0:00:24]} 75. Ra6+ {[%clk 0:00:21]}  Kf5 {[%clk 0:00:23]} 76. Ra5+ {[%clk 0:00:21]}  Kf6 {[%clk 0:00:23]} 77. Ra6+ {[%clk 0:00:21]}  Kf5 {[%clk 0:00:23]} 78. Ra5+ {[%clk 0:00:20]}  Kf6 {[%clk 0:00:24]} 79. Rc5 {[%clk 0:00:20]}  Rb2+ {[%clk 0:00:22]} 80. Kh3 {[%clk 0:00:20]}  Rb1 {[%clk 0:00:22]} 81. Rc6+ {[%clk 0:00:20]}  Kf5 {[%clk 0:00:22]} 82. Rc5+ {[%clk 0:00:20]}  Kf6 {[%clk 0:00:23]} 83. Ra5 {[%clk 0:00:20]}  Rh1+ {[%clk 0:00:22]} 84. Kg2 {[%clk 0:00:20]}  Rb1 {[%clk 0:00:23]} 1/2-1/2


[Site "https://www.chess.com"]

[Event "Titled Tuesday Blitz August 22 Late 2023"]
[White "Erzhanov, Arman"]
[Black "JerMorGurgeh"]
[WhiteFideId "4138821"]
[WhiteElo "2577"]
[BlackElo "2402"]
[Result "1-0"]
[Round "3"]
[TimeControl "180+1"]
[Date "2023.08.22"]
[WhiteClock "0:00:21"]
[BlackClock "0:00:00"]
[Board "118"]

1. e4 {[%clk 0:03:00]}  e6 {[%clk 0:02:42]} 2. b3 {[%clk 0:03:00]}  c5 {[%clk 0:02:38]} 3. Nf3 {[%clk 0:02:59]}  Nc6 {[%clk 0:02:34]} 4. Bb5 {[%clk 0:02:59]}  Nge7 {[%clk 0:02:32]} 5. Bb2 {[%clk 0:02:59]}  a6 {[%clk 0:02:31]} 6. Bxc6 {[%clk 0:03:00]}  Nxc6 {[%clk 0:02:30]} 7. O-O {[%clk 0:03:01]}  d6 {[%clk 0:02:27]} 8. d4 {[%clk 0:03:00]}  cxd4 {[%clk 0:02:24]} 9. Nxd4 {[%clk 0:03:01]}  Bd7 {[%clk 0:02:13]} 10. Re1 {[%clk 0:03:01]}  Qc7 {[%clk 0:02:10]} 11. c4 {[%clk 0:03:01]}  Ne5 {[%clk 0:02:06]} 12. f4 {[%clk 0:02:52]}  Ng6 {[%clk 0:02:03]} 13. f5 {[%clk 0:02:51]}  Ne5 {[%clk 0:01:58]} 14. fxe6 {[%clk 0:02:51]}  fxe6 {[%clk 0:01:57]} 15. Nf3 {[%clk 0:02:47]}  Nf7 {[%clk 0:01:38]} 16. Nc3 {[%clk 0:02:32]}  O-O-O {[%clk 0:01:33]} 17. Kh1 {[%clk 0:02:12]}  Bc6 {[%clk 0:01:30]} 18. Rc1 {[%clk 0:02:11]}  Kb8 {[%clk 0:01:29]} 19. Nd5 {[%clk 0:02:10]}  Qd7 {[%clk 0:01:23]} 20. Bd4 {[%clk 0:02:04]}  exd5 {[%clk 0:01:08]} 21. exd5 {[%clk 0:02:04]}  Ne5 {[%clk 0:00:59]} 22. Nxe5 {[%clk 0:01:37]}  dxe5 {[%clk 0:00:58]} 23. Bxe5+ {[%clk 0:01:32]}  Kc8 {[%clk 0:00:54]} 24. dxc6 {[%clk 0:01:30]}  Qxc6 {[%clk 0:00:51]} 25. Qg4+ {[%clk 0:01:27]}  Qd7 {[%clk 0:00:48]} 26. Qg3 {[%clk 0:01:12]}  Bb4 {[%clk 0:00:42]} 27. Rf1 {[%clk 0:01:07]}  Rhe8 {[%clk 0:00:37]} 28. c5 {[%clk 0:00:58]}  Re6 {[%clk 0:00:27]} 29. Bd6 {[%clk 0:00:56]}  Rde8 {[%clk 0:00:21]} 30. Qh4 {[%clk 0:00:46]}  Ba5 {[%clk 0:00:16]} 31. b4 {[%clk 0:00:39]}  Bc7 {[%clk 0:00:15]} 32. Bxc7 {[%clk 0:00:38]}  Qxc7 {[%clk 0:00:13]} 33. Qxh7 {[%clk 0:00:38]}  Rh6 {[%clk 0:00:11]} 34. Qf5+ {[%clk 0:00:36]}  Kb8 {[%clk 0:00:11]} 35. h3 {[%clk 0:00:35]}  Ka7 {[%clk 0:00:05]} 36. Qf2 {[%clk 0:00:33]}  Qc6 {[%clk 0:00:03]} 37. Qf3 {[%clk 0:00:33]}  Re4 {[%clk 0:00:03]} 38. a3 {[%clk 0:00:33]}  Rhe6 {[%clk 0:00:03]} 39. Rc3 {[%clk 0:00:23]}  g5 {[%clk 0:00:03]} 40. Rd3 {[%clk 0:00:22]}  g4 {[%clk 0:00:03]} 41. hxg4 {[%clk 0:00:21]}  Rh6+ {[%clk 0:00:03]} 42. Kg1 {[%clk 0:00:22]}  Qe6 {[%clk 0:00:00]} 43. Rd6 {[%clk 0:00:21]} 1-0


[Site "https://www.chess.com"]